Cogmind - Beta 17.1 @@@ ROGUE MODE // 2026.09.10 @ 15:41:58 Player: Somberlain Result: Destroyed by S-27 Virus with Autogun Performance ------------- Evolutions (5) 2500 Regions Visited (12) 2400 Robots Destroyed (58) 290 Value Destroyed (2728) 2728 Prototype IDs (20) 400 Alien Tech Used (0) 0 Bonus (3604) 3604 TOTAL SCORE: 11922 Bonus ------- High Alert Combat Kills 144 Follower Combat Kills 2415 Entered Garrisons 200 Used RIF Installer 500 Met Data Miner 300 MAIN.C Attacked Proxy Base 500 Friendly Fire -455 Cogmind --------- Core Integrity 0/1000 Matter 204/300 Energy 10/100 System Corruption 14% Temperature Cool (0) Movement Core (50) Location -5/Factory Parts ------- > --- POWER (2) -------- (None) > --- PROPULSION (3) --- (None) > --- UTILITY (10) ----- Advanced Cryofiber Web Advanced Heat Sink Improved Signal Interpreter Advanced Hacking Suite Advanced Hacking Suite Improved System Shield > --- WEAPON (2) ------- (None) > --- INVENTORY (5) ---- Reinforced Fission Core Improved Force Field Dispersion Rifle Improved Remote Datajack Phasing Sabre Peak State ------------ > --- POWER ------------ Antimatter Reactor Light Antimatter Reactor > --- PROPULSION ------- Myomer Leg Myomer Leg Advanced VSS Leg > --- UTILITY ---------- Large Storage Unit Makeshift Trap Scanner Improved Remote Force Field Advanced Hacking Suite Advanced Hacking Suite Advanced Hacking Suite Improved System Shield Improved System Shield Improved System Shield Amulet of Y3-NDR > --- WEAPON ----------- Dispersion Rifle Dispersion Rifle > --- INVENTORY -------- Advanced Cryofiber Web Advanced Cryofiber Web Advanced Heat Sink Advanced Energy Well Improved Reaction Control System Improved Force Field Improved Point Defense System Advanced Hacking Suite Advanced Hacking Suite Improved System Shield Dispersion Rifle Dispersion Rifle Improved Remote Datajack Plasma Flamer Phasing Sabre [Rating: 113] Favorites ----------- Power Light Fission Core Engine Improved Deuterium Engine Power Core Light Fission Core Reactor Light Antimatter Reactor Propulsion Myomer Leg Leg Myomer Leg Wheel Armored Wheel Utility Large Storage Unit Device Advanced Heat Sink Storage Large Storage Unit Processor Enhanced Optical Array Hackware Advanced Hacking Suite Protection Layered Medium Armor Plating Weapon Heavy Riot Gun Energy Gun Heavy Riot Gun Energy Cannon Heavy Particle Cannon Ballistic Gun Autogun Ballistic Cannon Improved Light Cannon Special Weapon Improved Remote Datajack Impact Weapon Hammer Slashing Weapon Phasing Sabre Special Melee Weapon Datajack Build | -11 -10 -10 -8 -8 -6 -6 -6 -6 -6 -6 -5 -5 ------- Run | Yrd Mat Sub Rec Scr Fac Gar Fac Low Low Dat Pro Fac Slots Evolved 10 | . . . . . 8 . . . . . . 2 Power 1 | . . . . . 1 . . . . . . . Propulsion 1 | . . . . . 1 . . . . . . . Utility 8 | . . . . . 6 . . . . . . 2 Weapon . | . . . . . . . . . . . . . Parts Attached 152 | 7 15 4 6 5 16 45 11 5 10 . 13 15 Power 23 | 1 1 1 . 1 3 8 . 1 1 . 4 2 Engine 10 | 1 1 1 . . . 6 . . . . 1 . Core 9 | . . . . 1 3 2 . 1 1 . . 1 Reactor 4 | . . . . . . . . . . . 3 1 Propulsion 22 | 2 3 . 2 . 4 9 1 . . . 1 . Treads . | . . . . . . . . . . . . . Leg 14 | 2 . . . . 1 9 1 . . . 1 . Wheel 8 | . 3 . 2 . 3 . . . . . . . Hover . | . . . . . . . . . . . . . Flight . | . . . . . . . . . . . . . Utility 63 | 1 5 1 1 1 4 18 8 2 7 . 4 11 Device 24 | . . 1 . 1 1 6 4 1 2 . 4 4 Storage 11 | 1 2 . . . . 6 1 . . . . 1 Processor 9 | . 2 . 1 . 1 1 1 1 1 . . 1 Hackware 17 | . . . . . 2 4 2 . 4 . . 5 Protection 2 | . 1 . . . . 1 . . . . . . Artifact . | . . . . . . . . . . . . . Weapon 44 | 3 6 2 3 3 5 10 2 2 2 . 4 2 Energy Gun 26 | 2 2 2 1 2 1 8 2 . 2 . 2 2 Energy Cannon 5 | . 1 . 2 . . . . . . . 2 . Ballistic Gun 4 | 1 . . . 1 1 1 . . . . . . Ballistic Cannon 3 | . 2 . . . 1 . . . . . . . Launcher . | . . . . . . . . . . . . . Special Weapon 2 | . . . . . 1 . . 1 . . . . Impact Weapon 2 | . 1 . . . . 1 . . . . . . Slashing Weapon 1 | . . . . . . . . 1 . . . . Piercing Weapon . | . . . . . . . . . . . . . Special Melee Weapon 1 | . . . . . 1 . . . . . . . Unidentified Prototypes 2 | . . 1 . . . . . . 1 . . . Corrupted Parts 3 | . . . . . . 1 1 . . . . 1 System Corruption 15 | . . . . . . 4 4 . . . . 7 Parts Lost 47 | . 2 2 . 3 6 16 1 . . . . 17 Power 10 | . . . . 1 . 5 . . . . . 4 Propulsion 12 | . 1 1 . . 3 4 . . . . . 3 Utility 14 | . . . . . 2 4 1 . . . . 7 Weapon 11 | . 1 1 . 2 1 3 . . . . . 3 Highest Loss Streak 11 | . 2 2 . 2 3 11 1 . . . . 5 To Critical Strikes 2 | . . . . . . 1 . . . . . 1 Average Backups 12 | . 5 14 14 13 10 13 14 14 14 15 14 12 Power . | . . 1 1 1 . . . . . . . . Propulsion . | . . . . . 1 1 2 3 . . . . Utility 6 | . 1 6 7 7 5 7 6 6 7 8 8 8 Weapon 3 | . 3 6 5 2 1 2 3 3 5 6 5 3 Tool/Special . | . . . . . . . . . . . . . Unused Backups 30 | . 1 . 7 2 . 5 1 . 3 . 7 4 Power 2 | . . . . 1 . . . . . . . 1 Propulsion 2 | . . . . . . 1 . . 1 . . . Utility 16 | . . . 3 . . 4 1 . 2 . 4 2 Weapon 10 | . 1 . 4 1 . . . . . . 3 1 Tool/Special . | . . . . . . . . . . . . . Average Slot Usage (%) 90 | . 93 96 84 93 65 82 98 96 99 100 99 88 Engine 6 | . 14 14 14 3 . 8 6 6 . . 1 . Core 4 | . . . . 9 10 3 6 6 13 13 4 . Reactor 1 | . . . . . . . . . . . 6 7 Leg 13 | . 18 . . . . 17 20 20 20 20 20 13 Wheel 5 | . 5 24 16 28 13 . . . . . . . Device 13 | . . 10 . 12 3 14 27 35 24 20 19 15 Storage 9 | . 14 14 14 14 6 10 6 6 6 6 6 4 Processor 4 | . 11 4 11 . 5 3 8 1 . . . . Hackware 11 | . . . . . 11 6 3 6 20 26 26 34 Energy Gun 10 | . 13 28 10 20 . 8 12 12 12 13 2 8 Energy Cannon 3 | . 3 . 16 1 . . . . . . 9 . Ballistic Cannon 1 | . 9 . . . 4 . . . . . . . Peak Build Rating 113 | 6 12 16 20 23 35 84 87 83 88 86 101 113 Average Rating 56 | 4 8 13 15 19 27 62 82 79 85 86 95 96 On Entrance 46 | . 6 11 15 18 10 33 80 72 82 86 86 100 Avg Prop Armor Cover (%) 9 | . 8 . . . . 10 . . . . . . Naked Turns . | . . . . . . . . . . . . . Heaviest Build 86 | 13 34 33 36 39 42 65 67 58 53 48 86 82 Greatest Support 75 | 20 26 20 24 24 36 75 75 68 68 68 68 68 Greatest Overweight (x) 7 | 1 2 3 3 1 3 7 . . . . 1 2 Average Overweight (x) . | . . 1 2 . 1 . . . . . . . Largest Inventory Capacity 15 | 8 15 15 15 15 15 15 15 15 15 15 15 15 Average Capacity 14 | 6 10 15 15 15 15 15 15 15 15 15 15 13 Most Carried 15 | . 15 15 15 15 15 15 15 15 15 15 15 15 Average Carried 12 | . 5 14 14 13 10 13 14 14 14 15 14 12 Final Capacity 15 | 8 15 15 15 15 15 15 15 15 15 15 15 5 Final Carried 15 | . 15 14 15 15 15 14 15 15 15 15 15 5 Class Distribution -------------------- 41% | Scavenger-Mutant 36% | Mutant 13% | Wizard-Mutant 4% | Hacker-Mutant 3% | Commander-Mutant Dominant Class ---------------- Mutant | -10/Materials Mutant | -10/Subcaves Mutant | -8/Recycling Mutant | -8/Scraptown Hacker-Mutant | -6/Factory Scavenger-Mutant | -6/Garrison Scavenger-Mutant | -6/Factory Scavenger-Mutant | -6/Lower Caves Scavenger-Mutant | -6/Lower Caves Scavenger-Mutant | -6/Data Miner Scavenger-Mutant | -5/Proximity Caves Wizard-Mutant | -5/Factory Resources | -11 -10 -10 -8 -8 -6 -6 -6 -6 -6 -6 -5 -5 ----------- Run | Yrd Mat Sub Rec Scr Fac Gar Fac Low Low Dat Pro Fac Matter Collected 3033 | 230 260 72 49 78 197 1064 181 115 246 . 355 186 Remotely . | . . . . . . . . . . . . . Salvage Created 2317 | . 582 98 54 65 88 800 125 119 70 . 113 203 Parts 122 | . 32 4 3 1 6 42 6 5 . . 4 19 Haulers Intercepted 2 | . 2 . . . . . . . . . . . Recyclers Shooed 1 | . 1 . . . . . . . . . . . Parts Field Recycled . | . . . . . . . . . . . . . Retrieved Matter . | . . . . . . . . . . . . . Parts Self-Destructed 61 | . . 8 . . . . . 4 6 . 43 . Prevented 50 | . . 3 . . . . . . 16 . 31 . Parts Restored . | . . . . . . . . . . . . . Kills | -11 -10 -10 -8 -8 -6 -6 -6 -6 -6 -6 -5 -5 ------- Run | Yrd Mat Sub Rec Scr Fac Gar Fac Low Low Dat Pro Fac Combat Hostiles Destroyed 42 | . 9 2 1 1 3 16 2 4 1 . 1 2 Melee 3 | . 1 . . . . 2 . . . . . . Guns 23 | . . 2 . 1 1 11 2 4 . . . 2 Cannons 10 | . 6 . 1 . 2 . . . . . 1 . AOE 2 | . 1 . . . . . . . 1 . . . Classes Destroyed 15 | . 6 1 1 1 . 3 1 1 . . . 1 Worker 2 | . 1 . . . 1 . . . . . . . Builder 1 | . . . . . . . . . . . . 1 Hauler 2 | . 2 . . . . . . . . . . . Recycler 3 | . 3 . . . . . . . . . . . Operator 1 | . . . . . . . 1 . . . . . Turret 2 | . . 2 . . . . . . . . . . Watcher 3 | . 3 . . . . . . . . . . . Swarmer 16 | . 4 2 . . 2 5 . 3 . . . . Saboteur 1 | . . . . . . 1 . . . . . . Grunt 12 | . 5 . . . . 5 1 . 1 . . . Brawler 1 | . . . . . . 1 . . . . . . Sentry 4 | . . . 1 . 1 1 1 . . . . . Hunter 4 | . . . . . . 3 . . . . 1 . Programmer 3 | . . . . . . . . 1 . . . 2 Ranger 1 | . . . . 1 . . . . . . . . Wizard 2 | . . . . . . . . . . . 1 1 Best Kill Streak 5 | . 4 4 1 1 3 5 2 3 1 . 1 3 Combat Bots Only 5 | . 2 2 1 1 2 5 1 3 1 . 1 2 Max Kills in Single Turn 2 | . 2 2 1 1 1 2 1 1 1 . 1 1 Gunslinging 1 | . . 1 . . . 1 . . . . . . Exploded 1 | . 1 . . . . . . . 1 . . . Melee 1 | . 1 . . . . 1 . . . . . . Uniques/NPCs Destroyed . | . . . . . . . . . . . . . Combat | -11 -10 -10 -8 -8 -6 -6 -6 -6 -6 -6 -5 -5 -------- Run | Yrd Mat Sub Rec Scr Fac Gar Fac Low Low Dat Pro Fac Hostile Shots Fired 654 | . 52 46 4 27 120 148 15 21 9 . . 212 Missed 217 | . 7 11 1 7 48 35 3 8 4 . . 93 Hits 437 | . 45 35 3 20 72 113 12 13 5 . . 119 Melee 8 | . . . . . . 8 . . . . . . Projectile 429 | . 45 35 3 20 72 105 12 13 5 . . 119 AOE 1 | . . . . . . . . . . . . 1 Critical Strikes 23 | . . . . 2 1 13 1 1 . . . 5 Part Disruptions 3 | . . . . . . . . . . . . 3 Damage Taken 6864 | . 455 282 46 297 891 1974 316 138 87 . 12 2366 Core 1946 | . 44 70 14 20 228 488 31 39 12 . . 1000 Absorbed by Shields 361 | . . . . . . 17 115 53 33 . 13 130 Regen/Repaired (Parts) 193 | . . . . . . . . . . . 50 143 Core Remaining (%) 48 | 100 . . . 40 . . . . . . 6 . Volleys Fired 216 | . 43 8 5 6 18 64 14 7 9 . 8 34 Largest 2 | . 2 2 1 2 2 2 2 2 2 . 2 2 Hottest 193 | . 100 90 75 100 63 175 175 169 120 . 193 176 Shots Fired 366 | . 81 15 11 13 29 99 27 14 18 . 16 43 Gun 289 | . 48 15 5 13 15 93 27 14 16 . . 43 Cannon 73 | . 33 . 6 . 14 5 . . . . 15 . Launcher . | . . . . . . . . . . . . . Special 4 | . . . . . . 1 . . 2 . 1 . Kinetic 61 | . 18 . . 3 29 11 . . . . . . Thermal 234 | . 45 . 11 . . 87 27 14 . . 7 43 Explosive . | . . . . . . . . . . . . . Electromagnetic 67 | . 18 15 . 10 . . . . 16 . 8 . Robot Hit Streak 13 | . 13 8 3 4 6 12 5 7 2 . 2 5 Robot Miss Streak 9 | . 3 3 9 2 3 3 4 3 3 . 6 5 Penetration Max . | . . . . . . . . . . . . . Secondary Targets 3 | . . 1 . 1 . 1 . . . . . . Max Gunslinging Chain 1 | . . 1 . 1 . 1 . . . . . . Autonomous 5 | . . . 5 . . . . . . . . . Shots Hit Robots 225 | . 52 13 7 8 20 71 12 7 10 . 6 19 Core Hits 93 | . 23 11 2 3 7 24 5 5 2 . 6 5 Critical Kills 1 | . . . . . . . . . . . 1 . Critical Parts Destroyed 4 | . . . . . . 2 . . . . . 2 Critical Strikes 7 | . . . . . 1 3 . . . . 1 2 Meltdown 1 | . . . . . . . . . . . 1 . Destroy 2 | . . . . . . . . . . . . 2 Blast 2 | . . . . . 1 1 . . . . . . Smash 2 | . . . . . . 2 . . . . . . Melee Attacks 44 | . 4 . . . 3 30 . 3 1 . . 3 Impact 28 | . 4 . . . 2 22 . . . . . . Slashing 7 | . . . . . . . . 3 1 . . 3 Piercing . | . . . . . . . . . . . . . Sneak Attacks 5 | . . . . . 1 4 . . . . . . Combat Hostiles . | . . . . . . . . . . . . . Follow-up Attacks 1 | . . . . . . 1 . . . . . . Damage Inflicted 5047 | . 976 155 112 160 399 1401 384 218 176 . 310 756 Guns 3212 | . 372 155 12 160 183 915 384 218 114 . . 699 Cannons 1146 | . 444 . 100 . 216 76 . . . . 310 . Explosions 169 | . 107 . . . . . . . 62 . . . Melee 514 | . 53 . . . . 410 . . . . . 51 Ramming 6 | . . . . . . . . . . . . 6 Kinetic 867 | . 282 . . 45 399 141 . . . . . . Thermal 2990 | . 484 . 112 . . 850 384 218 62 . 181 699 Explosive . | . . . . . . . . . . . . . Electromagnetic 670 | . 157 155 . 115 . . . . 114 . 129 . Impact 463 | . 53 . . . . 410 . . . . . . Slashing 51 | . . . . . . . . . . . . 51 Piercing . | . . . . . . . . . . . . . Highest Corruption 15 | . 2 2 2 2 . 11 15 15 15 15 15 14 Average Corruption 9 | . 2 2 2 2 . 10 13 15 15 15 15 8 Corruption Purged . | . . . . . . . . . . . . . Corruption Blocked . | . . . . . . . . . . . . . Effects 292 | . 3 3 14 18 . 87 24 15 45 6 44 33 Message Errors 68 | . . 1 5 5 . 18 5 2 14 2 10 6 Matter Fused 78 | . 1 . 2 3 . 32 6 4 9 3 11 7 Heat Flow Errors 26 | . . . 3 2 . 5 3 2 6 . 2 3 Energy Discharges 23 | . . . 1 . . 5 3 2 3 . 6 3 Parts Rejected 1 | . . . . . . . . . 1 . . . Parts Fused 3 | . . . . . . 1 . . 1 . 1 . Data Loss (minor) 48 | . 1 2 2 4 . 18 3 2 4 1 8 3 Data Loss (major) 16 | . 1 . . 1 . 3 1 2 3 . 2 3 Misfires 12 | . . . 1 2 . 2 2 . 2 . 2 1 Alerts 6 | . . . . 1 . 2 . 1 2 . . . Misdirections 6 | . . . . . . . . . . . 1 5 Weapon Failures 5 | . . . . . . 1 1 . . . 1 2 Overload Shots . | . . . . . . . . . . . . . Overflow Damage 74 | . . . . . . 74 . . . . . . Projectiles . | . . . . . . . . . . . . . Explosions . | . . . . . . . . . . . . . Melee 74 | . . . . . . 74 . . . . . . Knockbacks 6 | . 3 . . . . 3 . . . . . . Impact 1 | . . . . . . 1 . . . . . . Kinetic 4 | . 2 . . . . 2 . . . . . . Secondary 1 | . 1 . . . . . . . . . . . Self-Inflicted Damage 3 | . . . . . . . . . . . . 3 Shots . | . . . . . . . . . . . . . Rammed 1 | . . . . . . . . . . . . 1 Targets Rammed 1 | . . . . . . . . . . . . 1 Kicked . | . . . . . . . . . . . . . Crushed . | . . . . . . . . . . . . . Highest Temperature 496 | . 234 59 496 237 43 317 80 . 193 . 240 324 Average Temperature 87 | . 73 34 153 106 19 89 39 . 66 . 92 90 Received Heat Transfer 1787 | . 114 174 9 132 138 764 22 . 24 . . 410 Effects 5 | . 3 . 1 . . . . . . . . 1 Shutdowns 1 | . . . 1 . . . . . . . . . Energy Bleed 1 | . . . . . . . . . . . . 1 Interference 3 | . 3 . . . . . . . . . . . Siege Activations . | . . . . . . . . . . . . . Martial Activations . | . . . . . . . . . . . . . Shielding Activations . | . . . . . . . . . . . . . Robots Disrupted . | . . . . . . . . . . . . . Combat Hostiles . | . . . . . . . . . . . . . Robots Corrupted 4 | . 1 . . . . 3 . . . . . . Combat Hostiles 4 | . 1 . . . . 3 . . . . . . Parts Fried 10 | . 2 . . 3 . 2 . . 2 . 1 . Impact Corruptions 3 | . . . . . . 3 . . . . . . Robots Melted 1 | . . . . . . . . . . . 1 . Combat Hostiles . | . . . . . . . . . . . . . Parts Melted 8 | . . . . . . 4 1 1 . . 1 1 Heat Transferred 4422 | . 958 . 198 . . 1406 444 348 50 . 185 833 Parts Sabotaged 10 | . . . . . . 10 . . . . . . Parts Stolen . | . . . . . . . . . . . . . Parts Stripped . | . . . . . . . . . . . . . Power Chain Reactions 3 | . 2 . . . . . . . 1 . . . Alert | -11 -10 -10 -8 -8 -6 -6 -6 -6 -6 -6 -5 -5 ------- Run | Yrd Mat Sub Rec Scr Fac Gar Fac Low Low Dat Pro Fac Maximum Alert Level 5 | . . . . . . 5 3 . . . . 4 Low Security (%) 51 | 100 100 . 100 . 100 16 . . . . . 26 Level 1 8 | . . . . . . 12 . . . . . 23 Level 2 12 | . . . . . . 20 . . . . . 29 Level 3 17 | . . . . . . 22 100 . . . . 14 Level 4 6 | . . . . . . 19 . . . . . 5 Level 5 2 | . . . . . . 8 . . . . . . High Security . | . . . . . . . . . . . . . Max Security . | . . . . . . . . . . . . . Peak Influence 1795 | . 114 . 163 . 35 1795 1040 . . . . 1135 Initial 942 | . . . 163 . . 9 942 . . . . 196 Average 405 | . 37 . 32 . 5 762 934 . . . . 445 Influence Increases 6292 | . 453 411 65 . 90 1946 351 100 307 . 615 1954 Destroy 0b10 Robot/C 2300 | . 180 120 60 . 60 340 140 80 180 . 320 820 Destroy 0b10 Robot/NC 105 | . 45 . . . 5 5 20 . . . 5 25 Destroy Leader 310 | . 50 . . . 10 30 44 20 40 . . 116 Allied During Kill 924 | . . 6 3 . . 6 76 . 57 . 290 486 Successful Hack 75 | . 22 . . . 14 30 9 . . . . . Disable Machine 180 | . 15 . . . . . 45 . . . . 120 Anti-Garrison Action 1450 | . . . . . . 1450 . . . . . . Destroy Structure 168 | . 6 . 2 . 1 40 17 . . . . 102 Partial Spotted 15 | . . . . . . . . . . . . 15 Lose Combat Pursuer 765 | . 135 285 . . . 45 . . 30 . . 270 Influence Decreases 5820 | . 343 180 406 . 76 165 1141 553 624 235 302 1795 Entered New Map 1921 | . . 54 178 . . 5 853 373 106 235 . 117 Time Decay 2339 | . 323 106 228 . 66 . 238 180 458 . 202 538 Lost Part 390 | . 20 20 . . 10 160 10 . . . . 170 Lost Ally 420 | . . . . . . . 40 . 60 . 100 220 Purge Threat 750 | . . . . . . . . . . . . 750 Squads Dispatched 18 | . . . . . . . 4 . . . . 14 Investigation 4 | . . . . . . . 1 . . . . 3 Extermination 4 | . . . . . . . 1 . . . . 3 Reinforcement 9 | . . . . . . . 2 . . . . 7 Assault 1 | . . . . . . . . . . . . 1 Garrison . | . . . . . . . . . . . . . Intercept . | . . . . . . . . . . . . . Searches Triggered . | . . . . . . . . . . . . . Construction Impeded 3 | . . . . . . . 1 . . . . 2 Haulers Reinforced 1 | . . . . . . . . . . . . 1 Active Scanning Responses . | . . . . . . . . . . . . . Cargo Convoy Interrupts 1 | . . . . . . . . . . . . 1 Stealth | -11 -10 -10 -8 -8 -6 -6 -6 -6 -6 -6 -5 -5 --------- Run | Yrd Mat Sub Rec Scr Fac Gar Fac Low Low Dat Pro Fac Distress Signals 5 | . 1 . . . . . 2 . . . . 2 Communications Jammed . | . . . . . . . . . . . . . Distress Signals . | . . . . . . . . . . . . . Times Spotted 185 | . 20 17 2 6 6 21 14 4 7 . 19 69 Peak Tracking Total 15 | . 4 5 2 8 4 5 3 3 4 . 8 15 Tactical Retreats 24 | . 9 3 . 2 . 2 . . 1 . . 7 Traps | -11 -10 -10 -8 -8 -6 -6 -6 -6 -6 -6 -5 -5 ------- Run | Yrd Mat Sub Rec Scr Fac Gar Fac Low Low Dat Pro Fac Traps Triggered 8 | . 1 . . . 1 5 . . . . . 1 Indirectly . | . . . . . . . . . . . . . Trap Hack Attempts . | . . . . . . . . . . . . . Triggered . | . . . . . . . . . . . . . Disarmed 8 | . 8 . . . . . . . . . . . Reprogrammed . | . . . . . . . . . . . . . Reused . | . . . . . . . . . . . . . Traps Extracted . | . . . . . . . . . . . . . Installed . | . . . . . . . . . . . . . Triggered . | . . . . . . . . . . . . . Machines | -11 -10 -10 -8 -8 -6 -6 -6 -6 -6 -6 -5 -5 ---------- Run | Yrd Mat Sub Rec Scr Fac Gar Fac Low Low Dat Pro Fac Machines Disabled 23 | . 1 2 . 4 . 4 3 . 1 . . 8 Max in Single Turn 1 | . 1 1 . 1 . 1 1 . 1 . . 1 Garrison Relay 4 | . . . . . . 4 . . . . . . Machines Repaired . | . . . . . . . . . . . . . Machines Dismantled . | . . . . . . . . . . . . . Machines Sabotaged . | . . . . . . . . . . . . . Overloaded Fab Kills . | . . . . . . . . . . . . . Hacking | -11 -10 -10 -8 -8 -6 -6 -6 -6 -6 -6 -5 -5 --------- Run | Yrd Mat Sub Rec Scr Fac Gar Fac Low Low Dat Pro Fac Machines Accessed 33 | . 8 . 3 1 2 3 4 1 . 4 2 5 Terminals 18 | . 7 . 2 . 1 3 3 . . . . 2 Fabricators 2 | . . . . . . . 1 . . . . 1 Repair Stations 3 | . . . . . . . . . . . 1 2 Recycling Units 3 | . 1 . 1 . . . . . . . 1 . Scanalyzers . | . . . . . . . . . . . . . Garrison Access 1 | . . . . . 1 . . . . . . . Total Hacks 119 | . 25 . 6 9 4 7 10 1 . 25 9 23 Successful 71 | . 8 . 3 9 1 3 4 1 . 25 3 14 Failed 48 | . 17 . 3 . 3 4 6 . . . 6 9 Catastrophic 10 | . 4 . 1 . 1 2 1 . . . . 1 Database Lockouts . | . . . . . . . . . . . . . Manual 46 | . 21 . 3 . 2 . 6 . . . . 14 Terminals 60 | . 23 . 5 . 2 7 8 . . . . 15 Fabricators 4 | . . . . . . . 2 . . . . 2 Repair Stations 11 | . . . . . . . . . . . 5 6 Recycling Units 7 | . 2 . 1 . . . . . . . 4 . Scanalyzers . | . . . . . . . . . . . . . Garrison Access 2 | . . . . . 2 . . . . . . . Terminal Hacks 55 | . 7 . 2 9 . 3 2 1 . 25 . 6 Record 16 | . . . . 9 . . . . . 7 . . Part Schematic 9 | . . . . . . . 1 . . 8 . . Robot Schematic 7 | . . . . . . . . . . 7 . . Robot Analysis 2 | . 2 . . . . . . . . . . . Prototype ID Bank 4 | . . . . . . . 1 . . 3 . . Open Door 1 | . . . . . . . . 1 . . . . Branch Access Points 1 | . 1 . . . . . . . . . . . Emergency Access Points 1 | . . . . . . 1 . . . . . . Terminal Index 1 | . . . . . . . . . . . . 1 Unreport Threat 3 | . . . . . . . . . . . . 3 Locate Traps 1 | . 1 . . . . . . . . . . . Disarm Traps 2 | . 2 . . . . . . . . . . . Recall Reinforcements 1 | . . . . . . . . . . . . 1 Recall Assault 1 | . . . . . . . . . . . . 1 Registered Components 1 | . 1 . . . . . . . . . . . Zone Layout 2 | . . . 2 . . . . . . . . . Garrison Registry 1 | . . . . . . 1 . . . . . . Security Stations 1 | . . . . . . 1 . . . . . . Fabricator Hacks 4 | . . . . . . . 2 . . . . 2 Load Schematic 2 | . . . . . . . 1 . . . . 1 Build 2 | . . . . . . . 1 . . . . 1 Repair Station Hacks 8 | . . . . . . . . . . . 2 6 Scan Component 4 | . . . . . . . . . . . 1 3 Repair 4 | . . . . . . . . . . . 1 3 Recycling Unit Hacks 3 | . 1 . 1 . . . . . . . 1 . Retrieve Components 3 | . 1 . 1 . . . . . . . 1 . Scanalyzer . | . . . . . . . . . . . . . Garrison Access Hacks 1 | . . . . . 1 . . . . . . . Unlock Access 1 | . . . . . 1 . . . . . . . Unauthorized Hacks . | . . . . . . . . . . . . . Terminals . | . . . . . . . . . . . . . Fabricators . | . . . . . . . . . . . . . Repair Stations . | . . . . . . . . . . . . . Recycling Units . | . . . . . . . . . . . . . Scanalyzers . | . . . . . . . . . . . . . Garrison Access . | . . . . . . . . . . . . . Data Cores Recovered . | . . . . . . . . . . . . . Used . | . . . . . . . . . . . . . Hacking Detections 22 | . 6 . 2 . 2 3 3 . . . 1 5 Full Trace Events 5 | . . . . . . 3 . . . . . 2 Feedback Events . | . . . . . . . . . . . . . Feedback Blocked 1 | . . . . . . . . . . . . 1 Robot Schematics Acquired 7 | . . . . . . . . . . 7 . . Robots Built . | . . . . . . . . . . . . . Authchips . | . . . . . . . . . . . . . Time . | . . . . . . . . . . . . . Total Robot Build Rating . | . . . . . . . . . . . . . Part Schematics Acquired 9 | . . . . . . . 1 . . 8 . . Parts Built 4 | . . . . . . . 2 . . . . 2 Authchips 1 | . . . . . . . 1 . . . . . Time 105 | . . . . . . . 47 . . . . 58 Total Part Build Rating 24 | . . . . . . . 10 . . . . 14 Part Studies Acquired . | . . . . . . . . . . . . . Parts Repaired 3 | . . . . . . . . . . . 1 2 Time 155 | . . . . . . . . . . . 31 124 Parts Recycled . | . . . . . . . . . . . . . Recycled Matter . | . . . . . . . . . . . . . Retrieved Matter . | . . . . . . . . . . . . . Retrieved Components 12 | . 10 . 1 . . . . . . . 1 . Parts Scanalyzed . | . . . . . . . . . . . . . Part Schematics Acquired . | . . . . . . . . . . . . . Parts Damaged . | . . . . . . . . . . . . . Bothacking | -11 -10 -10 -8 -8 -6 -6 -6 -6 -6 -6 -5 -5 ------------ Run | Yrd Mat Sub Rec Scr Fac Gar Fac Low Low Dat Pro Fac Used RIF Installer 1 | . . . . . . 1 . . . . . . Robots Hacked 9 | . . . . . 1 6 . . 1 . 1 . Non-combat 1 | . . . . . 1 . . . . . . . Combat 8 | . . . . . . 6 . . 1 . 1 . Robot Hacks Applied 9 | . . . . . 1 6 . . 1 . 1 . parse_system 4 | . . . . . . 2 . . 1 . 1 . no_distress 1 | . . . . . 1 . . . . . . . reboot_system 1 | . . . . . . 1 . . . . . . formatsys_high 3 | . . . . . . 3 . . . . . . Relay Couplers Released 16 | . . . . . . 16 . . . . . . Machine Destruction 16 | . . . . . . 16 . . . . . . Attached 4 | . . . . . . 4 . . . . . . Fabnet Peak Effective % . | . . . . . . . . . . . . . Robots Rewired 11 | . . . . . . . . . 4 . 7 . Allies Hacked . | . . . . . . . . . . . . . Hacks Repelled 1 | . . . . . . . . . . . . 1 Allies | -11 -10 -10 -8 -8 -6 -6 -6 -6 -6 -6 -5 -5 -------- Run | Yrd Mat Sub Rec Scr Fac Gar Fac Low Low Dat Pro Fac Total Allies 42 | . . 1 . . . 5 . . 10 . 15 11 Largest Group 15 | . . 1 1 1 . 5 5 . 5 5 15 8 Highest-Rated Group 709 | . . 19 19 19 . 253 253 . 324 195 709 524 Highest-Rated Ally 96 | . . 19 19 19 . 80 80 . 81 81 96 96 Total Orders 2 | . . . . . . 2 . . . . . . STAY 1 | . . . . . . 1 . . . . . . FOLLOW 1 | . . . . . . 1 . . . . . . Ally Attacks 325 | . . 10 7 1 . 5 50 . 36 . 60 156 Total Damage 13208 | . . 142 125 18 . 226 1358 . 1853 . 3268 6218 Kills 93 | . . 2 2 . . 1 10 . 11 . 19 48 Allies Corrupted . | . . . . . . . . . . . . . Allies Melted 2 | . . . . . . . . . 1 . 1 . Intel | -11 -10 -10 -8 -8 -6 -6 -6 -6 -6 -6 -5 -5 ------- Run | Yrd Mat Sub Rec Scr Fac Gar Fac Low Low Dat Pro Fac Active Infowar (turns) 5213 | . 940 . . 802 159 1347 519 358 318 . 2 768 Optics 2749 | . 940 . . . . 1347 462 . . . . . Sensors 2063 | . . . . 802 159 . 272 358 318 . . 154 Traps 616 | . . . . . . . . . . . 2 614 Robot Analysis Total 2 | . 2 . . . . . . . . . . . Derelict Logs Recovered 6 | . . 2 . . . . . 1 1 . 2 . Drone Launches . | . . . . . . . . . . . . . Drone Recoveries . | . . . . . . . . . . . . . Exploration | -11 -10 -10 -8 -8 -6 -6 -6 -6 -6 -6 -5 -5 ------------- Run | Yrd Mat Sub Rec Scr Fac Gar Fac Low Low Dat Pro Fac Turns Passed 11088 | 71 1503 338 1014 857 377 2173 519 375 1144 109 1088 1520 Spaces Moved 7364 | 49 918 283 743 781 233 1242 317 290 910 81 588 929 Core 327 | 4 . . . . . 7 . . . . . 316 Treads . | . . . . . . . . . . . . . Legs 4750 | 45 675 . . . 16 1215 317 290 910 81 588 613 Wheels 2287 | . 243 283 743 781 217 20 . . . . . . Hover . | . . . . . . . . . . . . . Flight . | . . . . . . . . . . . . . Fastest Speed 50 | 50 80 95 100 90 90 90 110 110 110 110 110 50 Average Speed 123 | 116 135 100 120 103 116 136 119 110 110 110 161 119 Slowest Speed 400 | 120 260 125 125 105 270 400 120 110 110 110 186 190 Overloaded Moves . | . . . . . . . . . . . . . Propulsion Burnouts . | . . . . . . . . . . . . . Robots Hopped 1 | . . . . . . . . . . . 1 . Potential Cave-ins . | . . . . . . . . . . . . . Cave-ins Triggered . | . . . . . . . . . . . . . Exploration Rate (%) 51 | 4 90 26 92 49 8 91 10 54 83 70 58 30 Regions Visited 12 Branch Regions 7 Pre-discovered Areas 1 | . . 1 . . . . . . . . . . Known Exits Taken 4 | . . . . . 1 . 1 1 . . 1 . Unknown Exits Taken 7 | 1 1 1 1 1 . . . . 1 1 . . Scrap Searched 10 | . . . . 5 . . . 2 1 . 2 . Spaces Dug 8 | . . . . . 1 . 3 3 . . . 1 Terrain Destroyed 29 | . 4 . 2 1 1 . 9 6 4 . 1 1 Melee 5 | . . . . . 1 . . 3 . . . 1 Projectile 16 | . . . 2 1 . . 9 3 . . 1 . AOE 8 | . 4 . . . . . . . 4 . . . Terrain Rammed . | . . . . . . . . . . . . . Walls Destroyed . | . . . . . . . . . . . . . Machines Disabled . | . . . . . . . . . . . . . Actions | -11 -10 -10 -8 -8 -6 -6 -6 -6 -6 -6 -5 -5 --------- Run | Yrd Mat Sub Rec Scr Fac Gar Fac Low Low Dat Pro Fac Total 8933 | 60 1092 320 862 819 302 1576 435 328 1035 101 718 1285 Wait 791 | 4 79 20 86 16 19 103 74 12 42 21 45 270 Move 7350 | 48 917 282 742 780 233 1241 315 289 909 80 585 929 Hop 1 | . . . . . . . . . . . 1 . Pick Up 94 | . 18 . 9 5 6 17 5 2 15 . 10 7 Fast Attach 106 | 7 9 3 3 3 6 40 8 5 6 . 9 7 Attach 48 | . 3 1 2 2 7 14 1 2 1 . 2 13 Detach 32 | . 6 1 2 1 1 5 3 3 1 . 2 7 Swap 73 | . 4 2 2 . 8 18 4 1 17 . 10 7 Drop 124 | 1 9 3 11 6 1 30 10 4 20 . 23 6 Fire 216 | . 43 8 5 6 18 64 14 7 9 . 8 34 Melee 43 | . 4 . . . 3 29 . 3 1 . . 3 Ram 2 | . . . . . . . . . . . . 2 Kick . | . . . . . . . . . . . . . Crush . | . . . . . . . . . . . . . Escape Stasis 16 | . . . . . . 15 1 . . . . . Rewire 37 | . . . . . . . . . 14 . 23 . Trap . | . . . . . . . . . . . . . Miscellaneous . | . . . . . . . . . . . . . Route ------- -11/Scrapyard -10/Materials (discovered 6 exits: [*Mat x3] / *Min x2 / [*Sub]) -10/Subcaves -8/Recycling (discovered 2 exits: *Fac / *Scr) -8/Scraptown -6/Factory (discovered 2 exits: *Fac / Gar) -6/Garrison (discovered 3 exits: *Fac x3) -6/Factory -6/Lower Caves -6/Lower Caves -6/Data Miner -5/Proximity Caves -5/Factory (discovered 2 exits: *Fac / Ext) History --------- Turn | Location | Event 5 | -11/Scrapyard | Discovered new exit (range 16) 72 | -11/Scrapyard | Entered Materials 208 | -10/Materials | Identified exit to Mines 314 | -10/Materials | Build established: Mutant 491 | -10/Materials | Discovered new exit (range 11) 656 | -10/Materials | Discovered new exit (range 6) 746 | -10/Materials | Discovered new exit (range 17) 1458 | -10/Materials | Discovered new exit (range 15) 1575 | -10/Materials | Entered Subcaves 1587 | -10/Subcaves | Learned Materials security intel 1631 | -10/Subcaves | Visited triangular shrine 1661 | -10/Subcaves | Found Prototype Device 1661 | -10/Subcaves | Identified V3-11A's Pendant 1666 | -10/Subcaves | Befriended Subdweller 1794 | -10/Subcaves | Shifting Twisted Machinery released Mak. Power Source 1821 | -10/Subcaves | Discovered new exit (range 8) 1913 | -10/Subcaves | Entered Recycling 1913 | -8/Recycling | Accompanied by 1 ally 2239 | -8/Recycling | Scanned before Scraplab entrance 2446 | -8/Recycling | Core integrity fell below 50% 2494 | -8/Recycling | Discovered new exit (range 15) 2917 | -8/Recycling | Entered Scraplab 2925 | -8/Recycling | Discovered new exit (range 3) 2927 | -8/Recycling | Entered Scraptown 2927 | -8/Scraptown | Accompanied by 1 ally 3029 | -8/Scraptown | Heard Great Nut preacher, LISTEN AND RECITE! 3052 | -8/Scraptown | Delivered V3-11A's Pendant to T0-NE2 in exchange for information 3209 | -8/Scraptown | Visited Cave Peace 3240 | -8/Scraptown | Visited IN-MT5's Study 3268 | -8/Scraptown | Visited Comm Corps 3351 | -8/Scraptown | Discovered new exit (range 3) 3530 | -8/Scraptown | Attacked by Scraptown defenders 3784 | -8/Scraptown | Entered Factory 3784 | -6/Factory | Evolved 8 slots: Power x1, Propulsion x1, Utility x6 3866 | -6/Factory | Allied Derelicts emerged from ambush trap array 3936 | -6/Factory | Discovered new exit (range 14) 3990 | -6/Factory | Lost 3 parts (2n1u) 4036 | -6/Factory | Identified exit to Factory 4084 | -6/Factory | Build established: Hacker-Mutant 4106 | -6/Factory | Spotted B-75 Beast 4161 | -6/Factory | Identified exit to Garrison 4161 | -6/Factory | Entered Garrison 4176 | -6/Garrison | Lost 3 allies 4187 | -6/Garrison | Warlord forces raided the area 4248 | -6/Garrison | Core integrity fell below 50% 4292 | -6/Garrison | Lost 11 parts (3p3n2u3w) 4307 | -6/Garrison | Triggered checkpoint 4357 | -6/Garrison | Triggered checkpoint 4364 | -6/Garrison | Lost 3 parts (1p1n1u) 4386 | -6/Garrison | System corruption reached 10% 4409 | -6/Garrison | Triggered checkpoint 4635 | -6/Garrison | Triggered checkpoint 4652 | -6/Garrison | Build established: Scavenger-Mutant 4677 | -6/Garrison | Garrison Relay disabled 4806 | -6/Garrison | Core integrity fell below 20% 4883 | -6/Garrison | Triggered checkpoint 5095 | -6/Garrison | Triggered checkpoint 5102 | -6/Garrison | Garrison Relay disabled 5139 | -6/Garrison | Installed Relay Interface Framework 5187 | -6/Garrison | Discovered new exit (range 13) 5303 | -6/Garrison | Triggered checkpoint 5343 | -6/Garrison | Garrison Relay disabled 5376 | -6/Garrison | Attached CPS modules to Y-64 Sentinel 5452 | -6/Garrison | Discovered new exit (range 12) 5551 | -6/Garrison | Triggered checkpoint 5709 | -6/Garrison | Triggered checkpoint 5754 | -6/Garrison | Garrison Relay disabled 5814 | -6/Garrison | Found embedded Infiltrators 5868 | -6/Garrison | Discovered new exit (range 13) 5933 | -6/Garrison | Triggered checkpoint 6044 | -6/Garrison | Discovered new exit (range 12) 6044 | -6/Garrison | Discovered new exit (range 55) 6044 | -6/Garrison | Discovered new exit (range 72) 6124 | -6/Garrison | Learned Factory security intel 6334 | -6/Garrison | Entered Factory 6334 | -6/Factory | Accompanied by 5 allies 6551 | -6/Factory | Fabricated Imp. Cryofiber Web (x2) 6643 | -6/Factory | Discovered new exit (range 11) 6660 | -6/Factory | Identified exit to Lower Caves 6853 | -6/Factory | Entered Lower Caves 6856 | -6/Lower Caves | Encountered a Warlord checkpoint 6870 | -6/Lower Caves | Lost 3 allies 6917 | -6/Lower Caves | Identified exit to Lower Caves 7228 | -6/Lower Caves | Entered another Lower Caves area 7322 | -6/Lower Caves | Prototype Device suddenly appears! 7330 | -6/Lower Caves | Found Prototype Device 7330 | -6/Lower Caves | Identified Amulet of Y3-NDR 7384 | -6/Lower Caves | Joined by bewildered Wizard 7386 | -6/Lower Caves | Joined by bewildered Wizard 7387 | -6/Lower Caves | Joined by bewildered Wizard 7423 | -6/Lower Caves | Joined by bewildered Wizard 7477 | -6/Lower Caves | Joined by bewildered Wizard 7526 | -6/Lower Caves | Spotted B-75 Beast 7537 | -6/Lower Caves | Allies destroyed B-75 Beast 7700 | -6/Lower Caves | Lost 3 allies 7707 | -6/Lower Caves | Joined by bewildered Wizard 7796 | -6/Lower Caves | Attacked by a delusional Derelict stockpiling Unaware 8293 | -6/Lower Caves | Discovered new exit (range 14) 8372 | -6/Lower Caves | Entered Data Miner 8372 | -6/Data Miner | Accompanied by 5 allies 8372 | -6/Data Miner | Discovered new exit (range 6) 8393 | -6/Data Miner | Met Data Miner 8416 | -6/Data Miner | Acquired the access code to Warlord's prototype stash 8435 | -6/Data Miner | Received God Mode back door access code from Data Miner 8481 | -6/Data Miner | Entered Proximity Caves 8481 | -5/Proximity Caves | Accompanied by 5 allies 8483 | -5/Proximity Caves | Greeted by an Infiltrator in a former 0b10 base 8551 | -5/Proximity Caves | Joined by bewildered Wizard 8551 | -5/Proximity Caves | Joined by bewildered Wizard 8586 | -5/Proximity Caves | Joined by bewildered Wizard 8628 | -5/Proximity Caves | Former 0b10 base attacked by MAIN.C 8832 | -5/Proximity Caves | Repaired Imp. Force Field 8929 | -5/Proximity Caves | Build established: Commander-Mutant 8981 | -5/Proximity Caves | 0b10 base defense nominally successful 8993 | -5/Proximity Caves | Escorted by Enhanced Grunt 9070 | -5/Proximity Caves | Lost 11 allies 9134 | -5/Proximity Caves | Joined by bewildered Wizard 9135 | -5/Proximity Caves | Joined by bewildered Wizard 9147 | -5/Proximity Caves | Joined by bewildered Wizard 9265 | -5/Proximity Caves | Learned Factory garrison access intel 9430 | -5/Proximity Caves | Build established: Scavenger-Mutant 9534 | -5/Proximity Caves | Discovered exit to Factory (range 8) 9548 | -5/Proximity Caves | Learned location of 1 exit from Factory 9569 | -5/Proximity Caves | Entered Factory 9569 | -5/Factory | Accompanied by 7 allies 9569 | -5/Factory | Evolved 2 slots: Utility x2 9570 | -5/Factory | Identified exit to Extension 9571 | -5/Factory | Identified exit to Factory 9572 | -5/Factory | Loaded intel: 4 garrison access locations 9841 | -5/Factory | Joined by bewildered Wizard 9853 | -5/Factory | Build established: Wizard-Mutant 9961 | -5/Factory | Fabricated Adv. Cryofiber Web (x2) 10012 | -5/Factory | Joined by bewildered Wizard 10031 | -5/Factory | Joined by bewildered Wizard 10362 | -5/Factory | Repaired Lgt. Antimatter Reactor 10374 | -5/Factory | Joined by bewildered Wizard 10375 | -5/Factory | Joined by bewildered Wizard 10395 | -5/Factory | Repaired Myomer Leg 10399 | -5/Factory | Lost 3 allies 10469 | -5/Factory | First assault squad dispatched 10483 | -5/Factory | System corruption reached 10% 10541 | -5/Factory | Cargo convoy interrupted 10619 | -5/Factory | Joined by bewildered Wizard 10826 | -5/Factory | Lost 5 parts (1p2n2w) 10877 | -5/Factory | Core integrity fell below 50% 10931 | -5/Factory | Lost 5 parts (1n4u) 11049 | -5/Factory | Core integrity fell below 20% 11089 | -5/Factory | Destroyed by S-27 Virus with Autogun Last Messages --------------- 11033_ Door malfunctions. 11045_ Penetrated by Slug. 11048_ System corrupted: Component data lost. 11048_ Slug penetrates Wall. 11048_ Penetrated by Slug. 11056_ Adv. Hacking Suite destroyed. 11059_ Slug penetrates Wall. 11074_ Triggered Shock Trap. 11074_ The floor emits a surge of raw power. 11074_ System corrupted (+1). 11076_ W-25 Informer sends out distress signal. 11076_ Door malfunctions. 11079_ Slug penetrates Wall. 11079_ Penetrated by Slug. 11081_ K-01 Serf cleans the Construction Platform. 11085_ Imp. Sensor Array destroyed. 11086_ K-01 Serf cleans the Construction Platform. 11087_ Detecting nearby Garrison Access. Map ----- +----------------------------------------------------+ | ???????????????????????# + #?????????? | | ???????????????????????# #############?????????? | | ???????????????????????# #?????????????????????? | | ???????????????????????# #?????????????????????? | | ???????????????????????# #?????????????????????? | | ???????????????????????# #?????????????????????? | | ???????????????????????# #?????????????????????? | | ???????????????????????# #?????????????????????? | | ???????????????????????# #?????????????????????? | | ???????????????????????# #?????????????????????? | | ?????????????#####+##### ##?? ?????????????????? | | ?????????????# #? ????????????????? | | ?????????????# # "???????????????? | | ?????????????+ "" + ""??????????????? | | ?????????????# """" "" # ????????????? | | ?????????????# """"k T" # ???????????? | | ?????????????# """" s"" #? !????????????? | | ???????????????? """" "" #?? ????????????? | | ???????????????? """" ss ############?????????? | | ?????????????# """" Rs s ????????? | | ?????????????# """" ????????? | | ?????????????# k w ????????? | | ?????????????# ???????? | | ?????????????# ! ???????? | | ?????????????# #### ???????? | | ?????????????### ##???###@##############?????????? | | ???????????????# ?????? ?????????????????????? | | ???????????????#????? ???????????????????? | | ???????????????????# ! ?????????????????? | | ???????????????????# #????????????????? | | ???????????????????#= """ """ #????????????????? | | ???????????????????# """ """ #????????????????? | | ???????????????????# """ """ #????????????????? | | ???????????????????# #????????????????? | | ???????????????????# ? ""???#????????????????? | | ???????????????????# "?"? "?????????????????????? | | ???????????????????# ""G"" "?????????????????????? | | ???????????????????#?????? ?????????????????????? | | ???????????????????????????#?????????????????????? | | ?????????????????????????????????????????????????? | | ?????????????????????????????????????????????????? | | ?????????????????????????????????????????????????? | | ?????????????????????????????????????????????????? | | ?????????????????????????????????????????????????? | | ?????????????????????????????????????????????????? | | ?????????????????????????????????????????????????? | | ?????????????????????????????????????????????????? | | ?????????????????????????????????????????????????? | | ?????????????????????????????????????????????????? | | ?????????????????????????????????????????????????? | +----------------------------------------------------+ Best States ------------- Heat Dissipation 120 Energy Generation 37 Energy Capacity 1300 Matter Stores 590 Matter Capacity 600 Sight Range 22 Robot Scan Range 15 Terrain Scan Density 10 Base Temperature (-) 200 Armor Coverage 225 Phase Shifting 5 Evasion (%) 65 Targeting Accuracy 6 Particle Charging 20 Salvage Targeting 2 Offensive Hacking 70 Defensive Hacking 36 Relay Coupler Types 2 Relay Coupler Value 52 Authchip Count 5 Item Schematics ----------------- Imp. Cryofiber Web | -6/Factory | Hacked Combat Drone Bay | -6/Data Miner | Free Lgt. Regenerative Plating | -6/Data Miner | Free Cld. Nuclear Pulse Thruster | -6/Data Miner | Free Imp. Matter Compressor | -6/Data Miner | Free Hvy. Proton Cannon | -6/Data Miner | Free Field Propulsion Array | -6/Data Miner | Free Adv. Cryofiber Web | -6/Data Miner | Free Phase Gun | -6/Data Miner | Free Robot Schematics ------------------ M-22 Extractor | -6/Data Miner | Free B-60 Warrior | -6/Data Miner | Free B-48 Gladiator | -6/Data Miner | Free H-66 Slayer | -6/Data Miner | Free R-10 Processor | -6/Data Miner | Free M-36 Artificer | -6/Data Miner | Free X-72 Disruptor | -6/Data Miner | Free Fabricated ------------ Imp. Cryofiber Web | x2 | -6/Factory | Authchip Adv. Cryofiber Web | x2 | -5/Factory Repaired ---------- Imp. Force Field | 50% | -5/Proximity Caves Lgt. Antimatter Reactor | 34% | -5/Factory Myomer Leg | 39% | -5/Factory Studied --------- None Alien Tech Used ----------------- None Achievements -------------- Rodney's Helpers SUBSUB Challenges ------------ None Game ------ Seed SurveybotThermicDetonator Manual? 0 Play Time 01:39:15 Cumulative 97.9 hours Start 2026.09.10 @ 14:04:24 End 2026.09.10 @ 15:41:58 Sessions 1 Manual Loads 0 Difficulty Rogue Special Mode None Game No. 113 Rogue 113 Adventurer 0 Explorer 0 Win Type - Total 0 Types 0/0/0/0/0/0/0/0/0/0 Lore% 44 Gallery% 49 Achievement% 41 Wizard Run 0 Options --------- Layout 1 ASCII 0 Keyboard 0 Movement Mouse Keybinds 0 Fullscreen 2 Font 24/Smallcaps Map View 50x35 Zoom Use 0% Tactical HUD 1 Map Filters NONE Filters NONE Steam 1 RUN: 4c49a899-df59-4a5e-8043-32ed2878e6bb